{"text_format":"1","workbook":"xlsx","n_sheets":6,"sheets":["Ark1","Ark2","Ark3","Ark4","Ark5","Ark6"],"not_rendered":{"charts":0,"images":31,"macros":1,"external_links":0,"defined_names":2,"comments":0,"pivot_tables":0},"unopened":[],"bounds":{"document_bytes":16777216,"sheet_cells":100000,"rows_first":2000,"rows_last":500,"rows_between":2000,"halvings":0,"cell_chars":16384,"cell_head_chars":4096},"cells_cut":0,"cells_raw":0,"read":"whole","date_system":"1900"}

{"sheet":"Ark1","index":0,"n_rows":166,"n_cols":91,"rows_kept":166,"cut":false,"hidden":false,"merged":[[73,16,73,30],[60,0,60,13],[53,0,53,13],[68,16,68,30],[69,16,69,30],[70,16,70,30],[71,16,71,30],[72,16,72,30]]}
[]
[null,"k",null,null,null,"  De danske Melangyna-arter (Diptera: Syrphidae)"]
[null,null,null,null,null,"  HUNNER",null,null,null,null,null,null,null,null,"Bent Haagen Petersen"]
[]
["Denne nøgle gælder for hunner. Hunner har øjnene tydeligt bredt adskilte. Hanners øjne er sammenstødende."]
["Hunner i svirreflueslægten Melangyna er kendetegnet ved bagkroppens parvise ovale eller rektangulære plet-"]
["ter. Hos  nogle arter er pletterne tilspidsede mod midten, aldrig tilspidsede opefter ved bagkroppens sidekanter."]
["Visse arter har sølvpudrede pletter. Benene er overvejende sorte, generelt dog lidt lysere end hos hanner."]
[]
["I Danmark omfatter slægten 7 arter. M. labiatarum betragtes som værende en variant af M. compositarum."]
["Nogle forfattere betragter i nyere litteratur de to slægter Fagisyrphus og Meligramma som værende  under-"]
["slægter til Melangyna. I nærværende nøgle følger navngivningen den danske www.allearter.dk. De tre arter i "]
["slægterne er derfor ikke indeholdt i denne  nøgle, men Fagisyrphus adskilles let fra Melangyna ved at have"]
["skarpt trekantede gule pletter på 2. bagkropsled og gule bånd  på de øvrige bagkropsled. De to arter i slægten"]
["Meligramma har ansigtet helt gult og ofte en gul plet foran scutellum."]
[]
["Nogle arter i slægten kan være vanskelige at bestemme, især efter billeder.  En hjælp er det, at arterne kan"]
["opdeles i forårsarter og sommerarter. Fem af arterne er forårsarter, som kan findes frem til måske maj,"]
["senest første del af juni. De to arter M. compositarum og M. umbellatarum er typisk fremme  juni-august."]
["De skal helst bestemmes ved undersøgelse af mikroskopisk behåring på vingerne,. Det er selvfølgelig umuligt "]
["med billeder, men er nøglens kendetegn ellers tydelige, kan bestemmelse være forsvarlig. Medens det med"]
["hanner kan være vanskeligt at adskille arterne M. barbifrions og M. quadrimaculata, er der ingen problemer"]
["hos hunnerne, da M. quadrimaculata har bagkroppen helt sort. Til gengæld kan der så være andre arter, som "]
["kan ligne, f. eks. melanistiske Parasyrphus-eksemplarer.",null,null,null,null,null,null,null,null,null,null,null,null,null,null,null,null,null,null,null,null,null,null,null,null,null,null,null,null,null,null,null,null,null,null,null,null,null," "]
[]
[null,"Sådan bruger man bedst nøglen"]
["Nøglen er konstrueret til brug ved bestemmelse af fluer på billeder. Den bruger samme kendetegn som de"]
["almindelige nøgler. Blot er man ikke nødt til at gå frem i nøglen i en given rækkefølge, som man skal med"]
["almindelige nøgler. Det er en fordel, da der på billeder som regel vil være kendetegn, der ikke er synlige."]
["Med nøglen her  klikker man blot i helt vilkårlig rækkefølge på de kendetegn, man kan se på sit billede. Man"]
["behøver altså ikke starte med øverste nøglespørgsmål. Det er altid bedst at starte med  kendetegn, som er"]
["meget tydelige på billedet. Hver gang, man klikker på et kendetegn, vises kendetegnet på det øverste af"]
["billederne. Klikker man på kendetegn, der ikke passer med nøglens, skriver nøglen, at bestemmelse da "]
["næppe vil vær mulig."]
[]
["Når man klikker på kendetegn, kan man i artsoversigten se, hvordan antallet af mulige arter bliver mindre."]
["Når der kun er et navn tilbage i oversigten, skriver nøglen, at fluen nu er bestemt, og dens navn vises øverst"]
["på  skemaet. Derefter bør man klikke på fluens navn i oversigten for at læse en beskrivelse af fluen. Samtidig"]
["vises et billede af fluen. Er man derefter helt sikker på bestemmelsen, kan man indrapportere observationen."]
["Er man ikke særlig øvet i at bestemme fluer, bør man sikre sig, at bestemmelsen er rigtig ved først at vise"]
["den i Fugle&Naturs Tovinge-forum."]
[]
[]
[]
[]
["Nøgle til de danske Melangyna-HUNNER. (Diptera: Syrphidae)",null,null,null,null,null,null,null,null,null,null,null,null,null,null,null,null,null,null,null,null,null,null,null,null,null,null,null,null,null,null,null,null,null,null,null,null,null,null,null,null," ",null,null," ",null,null,null,null,null,null,null,null,null,null,null,null,null,null,null,null,null,null,null,null,null,null,null,null,null,null,null,null,null,null,null,null,null,null,null,null,null,null,"  Øverste billede viser kendetegn"]
[]
[null,"HUNNER",null,null,null,null,null,null,null,null,null,null,null,null,null,null,null,null,{"$f":"IF(AQ53=1,VLOOKUP(AQ52,BK55:BL67,2,FALSE),\"         Melangyna sp.\")","v":"         Melangyna sp."},null,null,null,null,null,null,null,null,null,null,null,null,null,null,null,null,null,null,null,null,null,null,null,null,null,null,null,null,null,null,null,null,null,null,null,null,null,null,null,null,null,null,null,null,null,null,null,null,null,null,null,null,null,null,null,null,null,5]
[]
["Forårsart, observeret inden 1. juni ?",null,null,null,null,null,null,null,null,null,null,null,null,null,null,null,null,null,null,{"$f":"IF(AQ53=1,VLOOKUP(AQ52,BA70:BB83,2,FALSE),\"          Svirreflue\")","v":"          Svirreflue"},null,null,null,null,null,null,null,null,null,null,null,null,null,null,null," ","Afkrydsede felter",null,null,null,null,null,{"$f":"SUM(AR50+AT50+AV50+AY50+BA50+BC50+BE50+BG50+BI50)","v":0},{"$f":"IF(AS50=0,0,1)","v":0},{"$f":"SUM(AR51:AS51)","v":0},{"$f":"IF(AU50=0,0,1)","v":0},{"$f":"SUM(AT51:AU51)","v":0},{"$f":"IF(AW50=0,0,1)","v":0},{"$f":"SUM(AV51:AX51)","v":0},null,{"$f":"IF(AZ50=0,0,1)","v":0},{"$f":"SUM(AY51:AZ51)","v":0},{"$f":"IF(BB50=0,0,1)","v":0},{"$f":"SUM(BA51:BB51)","v":0},{"$f":"IF(BD50=0,0,1)","v":0},{"$f":"SUM(BC51:BD51)","v":0},{"$f":"IF(BF50=0,0,1)","v":0},{"$f":"SUM(BE51:BF51)","v":0},{"$f":"IF(BH50=0,0,1)","v":0},{"$f":"SUM(BG51:BH51)","v":0},{"$f":"IF(BJ50=0,0,1)","v":0},{"$f":"SUM(BI51:BJ51)","v":0},null,null,null,null,null,null,null,null,null,null,null,null,null,null,{"$f":"IF(CA50,\"x\",\" \")","v":" "},null,0]
["Sommerart, observeret juni-august ?",null,null,null,null,null,null,null,null,null,null,null,null,null,null,null,null,{"$f":"IF(AQ53=1,\"      Fluen er nu bestemt.  Se ovenfor. \",IF(AQ50=0,\" \",IF(AQ50>AQ52,\" \",\"Se de mulige arter i oversigten nedenfor.\")))","v":" "},null,null,null,null,null,null,null,null,null,null,null,null,null,null,null,null,null,null,null,null,null,null,null,null,null,{"$f":"IF(BY50=\" \",0,1)","v":0},{"$f":"IF(BY51=\" \",0,1)","v":0},{"$f":"IF(BY53=\" \",0,1)","v":0},{"$f":"IF(BY54=\" \",0,1)","v":0},{"$f":"IF(BY56=\" \",0,1)","v":0},{"$f":"IF(BY57=\" \",0,1)","v":0},{"$f":"IF(BY58=\" \",0,1)","v":0},{"$f":"IF(BY60=\" \",0,1)","v":0},{"$f":"IF(BY61=\" \",0,1)","v":0},{"$f":"IF(BY63=\" \",0,1)","v":0},{"$f":"IF(BY64=\" \",0,1)","v":0},{"$f":"IF(BY66=\" \",0,1)","v":0},{"$f":"IF(BY67=\" \",0,1)","v":0},{"$f":"IF(BY69=\" \",0,1)","v":0},{"$f":"IF(BY70=\" \",0,1)","v":0},{"$f":"IF(BY72=\" \",0,1)","v":0},{"$f":"IF(BY73=\" \",0,1)","v":0},{"$f":"IF(BY74=\" \",0,1)","v":0},{"$f":"IF(BY75=\" \",0,1)","v":0},null,null,null,null,null,null,null,null,null,null,null,null,null,null,{"$f":"IF(CA51,\"x\",\" \")","v":" "},null,0]
[null,null,null,null,null,null,null,null,null,null,null,null,null,null,null,null,{"$f":"IF(AQ50>AQ52,\"Afkrydsede kendetegn passer ikke med nøglens.\",\" \")","v":" "},null,null,null,null,null,null,null,null,null,null,null,null,null,null,null,null," ",null,null,null,null,null,"Maks.",null,null,{"$f":"MAX(AQ55:AQ67)","v":0},null,null,null,null,null,null,null,null,null,null,null,null,null,null,null,null,null,null,null,null,null,null,null,null,null,null,null,null,null,null,null,null,null," "]
["Øjne mere eller mindre behårede ?",null,null,null,null,null,null,null,null,null,null,null,null,null,null,null,{"$f":"IF(AQ50>AQ52,\"Det gør en bestemmelse tvivlsom.    Prøv igen !\",\" \")","v":" "},null,null,null,null,null,null,null,null,null,null,null,null,null,null,null,null,null,null,null,null,null,"Antal Maks.",null,null,null,{"$f":"COUNTIF(AQ55:AQ67,AQ52)","v":13},null,null,null,null,null,null,null,null,null,null,null,null,null,null,null,null,null," ",null,null,null,null,null,null,null,null,null,null,null,null,null,null,null,{"$f":"IF(CA53,\"x\",\" \")","v":" "},null,0]
["Ingen øjenbehåring synlig ?",null,null,null,null,null,null,null,null,null,null,null,null,null,null,null,null,null,null,null,null,null,null,null,null,null,null,null,null,null,null,null,null,null,null,null,null,null,null,null,null,null,"sum","før","eft.","øjne",null,"sct",null,null,"bagkrop",null,"pl",null,"runde",null,null,null,"overside",null,null,null,"sum",null,null,null,null,null,null,null,null,null,null,null,null,null,{"$f":"IF(CA54,\"x\",\" \")","v":" "},null,0]
[null,null,null,null,null,null,null,null,null,null,null,null,null,null,null,null,null,null,null,null,null,null,null,null,null,null,null,null,null,null," ",null,null,1,"barbifrons",null,null,null,null,null,null,null,{"$f":"SUM(AR55:BJ55)","v":0},{"$f":"IF(BY50=\"x\",1,\" \")","v":" "},{"$f":"IF(BY51=\"x\",1,\" \")","v":" "},null,{"$f":"IF($BY$54=\"x\",1,\" \")","v":" "},null,null,{"$f":"IF($BY$58=\"x\",1,\" \")","v":" "},null,{"$f":"IF($BY$61=\"x\",1,\" \")","v":" "},{"$f":"IF($BY$63=\"x\",1,\" \")","v":" "},null,null,{"$f":"IF($BY$67=\"x\",1,\" \")","v":" "},null,{"$f":"IF($BY$70=\"x\",1,\" \")","v":" "},null,{"$f":"IF($BY$73=\"x\",1,\" \")","v":" "},{"$f":"IF($BY$74=\"x\",1,\" \")","v":" "},null,{"$f":"SUM(AR55:BJ55)","v":0},"    Melangyna barbifrons",null,null,null,null,null,null,null,null,null,null,null,null," "]
["Scutellum gulligt med sort plet i forhjørnerne ?",null,null,null,null,null,null,null,null,null,null,null,null,null,null,null,null,null,null,null,null,null,null,null,null,null,null,null,null,null,null,null,null,2,"compositarum",null,null,null,null,null,null,null,0," ",{"$f":"IF(BY51=\"x\",1,\" \")","v":" "},{"$f":"IF($BY$53=\"x\",1,\"\")","v":""},{"$f":"IF($BY$54=\"x\",1,\" \")","v":" "},{"$f":"IF(BY56=\"x\",1,\" \")","v":" "},null,null,null,{"$f":"IF($BY$61=\"x\",1,\" \")","v":" "},{"$f":"IF($BY$63=\"x\",1,\" \")","v":" "}," ",null,{"$f":"IF($BY$67=\"x\",1,\" \")","v":" "},null,{"$f":"IF($BY$70=\"x\",1,\" \")","v":" "},null," ",null,{"$f":"IF($BY$75=\"x\",1,\" \")","v":" "},0,"Melangyna compositarum",null,null,null,null,null,null,null,null,null,null,null,null,{"$f":"IF(CA56,\"x\",\" \")","v":" "},null,false]
["Sorte plet kileformet forlænget på sidekanten ? ",null,null,null,null,null,null,null,null,null,null,null,null,null,null,null,null,null,null,null,null,null,null,null,null,null,null,null,null,null,null,null,null,3,"lasiophthalma",null,null,null,null,null,null,null,{"$f":"SUM(AR57:BJ57)","v":0},{"$f":"IF(BY50=\"x\",1,\" \")","v":" "},{"$f":"IF(BY51=\"x\",1,\" \")","v":" "},{"$f":"IF($BY$53=\"x\",1,\"\")","v":""}," ",null,{"$f":"IF($BY$57=\"x\",1,\" \")","v":" "},null,null,{"$f":"IF($BY$61=\"x\",1,\" \")","v":" "},{"$f":"IF($BY$63=\"x\",1,\" \")","v":" "},null,null," ",null," ",null," ",null," ",{"$f":"SUM(AR57:BJ57)","v":0},"Melangyns lasiophthalma",null,null,null,null,null,null,null,null,null,null,null,null,{"$f":"IF(CA57,\"x\",\" \")","v":" "},null,0]
["Scutellum helt sort eller på midten sortbrunt ?",null,null,null,null,null,null,null,null,null,null,null,null,null,null,null," ",null,1,{"$f":"IF(AQ55=AQ52,AI55,\" \")","v":"barbifrons"},null,null,null,null,null,null,null,null,null,null,null,null,null,4,"lucifera ",null,null,null,null,null,null,null,0,{"$f":"IF(BY50=\"x\",1,\" \")","v":" "},{"$f":"IF(BY51=\"x\",1,\" \")","v":" "},""," ",null,{"$f":"IF($BY$57=\"x\",1,\" \")","v":" "},null,null," "," ",{"$f":"IF($BY$64=\"x\",1,\" \")","v":" "},{"$f":"IF($BY$66=\"x\",1,\" \")","v":" "},null,{"$f":"IF($BY$69=\"x\",1,\" \")","v":" "},null,null,{"$f":"IF($BY$73=\"x\",1,\" \")","v":" "},null," ",0,"     Melangyna lucifera ",null,null,null,null,null,null,null,null,null,null,null,null,{"$f":"IF(CA58,\"x\",\" \")","v":" "},null,0]
[null,null,null,null,null,null,null,null,null,null,null,null,null,null,null,null,null,null,2,{"$f":"IF(AQ56=AQ52,AI56,\" \")","v":"compositarum"},null,null,null,null,null,null,null,null,null,null,null,null,null,5,"pavlovskyi",null,null,null,null,null,null,null,0,{"$f":"IF(BY50=\"x\",1,\" \")","v":" "},{"$f":"IF(BY51=\"x\",1,\" \")","v":" "},""," "," ",{"$f":"IF($BY$57=\"x\",1,\" \")","v":" "},null,null," ",{"$f":"IF($BY$63=\"x\",1,\" \")","v":" "},null,{"$f":"IF($BY$66=\"x\",1,\" \")","v":" "},null,null," ",null,{"$f":"IF($BY$73=\"x\",1,\" \")","v":" "},null," ",0,"   Melangyna pavlovskyi",null,null,null,null,null,null,null,null,null,null,null,null," "]
["Bagkrop sort ?",null,null,null,null,null,null,null,null,null,null,null,null,null,null,null,null,null,3,{"$f":"IF(AQ57=AQ52,AI57,\" \")","v":"lasiophthalma"},null,null,null,null,null,null,null,null,null,null,null,null,null,6,"quadrimaculata",null,null,null,null,null,null,null,0,{"$f":"IF(BY50=\"x\",1,\" \")","v":" "},{"$f":"IF(BY51=\"x\",1,\" \")","v":" "},""," ",null,null,{"$f":"IF($BY$58=\"x\",1,\" \")","v":" "},{"$f":"IF($BY$60=\"x\",1,\" \")","v":" "},null,null,{"$f":"IF($BY$64=\"x\",1,\" \")","v":" "},null,null,null," ",null," ",{"$f":"IF($BY$74=\"x\",1,\" \")","v":" "},null,0,"Melangyna quadrimaculata",null,null,null,null,null,null,null,null,null,null,null,null,{"$f":"IF(CA60,\"x\",\" \")","v":" "},null,0]
["Bagkrop med lyse sidepletter ? ",null,null,null,null,null,null,null,null,null,null,null,null,null,null,null,null,null,4,{"$f":"IF(AQ58=AQ52,AI58,\" \")","v":"lucifera "},null,null,null,null,null,null,null,null,null,null,null,null,null,7,"umbellatarum",null,null,null,null,null,null,null,0,null,{"$f":"IF(BY51=\"x\",1,\" \")","v":" "},null,{"$f":"IF($BY$54=\"x\",1,\" \")","v":" "},{"$f":"IF(BY56=\"x\",1,\" \")","v":" "},null,null,null," ",{"$f":"IF($BY$63=\"x\",1,\" \")","v":" "}," ",null,{"$f":"IF($BY$67=\"x\",1,\" \")","v":" "},null," ",{"$f":"IF($BY$72=\"x\",1,\" \")","v":" "},null,null," ",0,"Melangyna umbellatarum",null,null,null,null,null,null,null,null,null,null,null,null,{"$f":"IF(CA61,\"x\",\" \")","v":" "},null,0]
[null,null,null,null,null,null,null,null,null,null,null,null,null,null,null,null,null,null,5,{"$f":"IF(AQ59=AQ52,AI59,\" \")","v":"pavlovskyi"},null,null,null,null,null,null,null,null,null,null,null,null,null,8,".",null,null,null,null,null,null,null,0,null,null,null,null,null,null,null,null,null,null,null,null,null,null,null,null,null,null,null,0,null,null,null,null,null,null,null,null,null,null,null,null,null," "]
["Pletter på 3. - 4. led rektangulære ell. ovale?",null,null,null,null,null,null,null,null,null,null,null,null,null,null,null,null,null,6,{"$f":"IF(AQ60=AQ52,AI60,\" \")","v":"quadrimaculata"},null,null,null,null,null,null,null,null,null,null,null,null,null,9,".",null,null,null,null,null,null,null,{"$f":"SUM(AR63:BJ63)","v":0},null,null,null,null,null," "," "," ",null,null,null,null," ",null,null," ",null,null,null,{"$f":"SUM(AR63:BJ63)","v":0},null,null,null,null,null,null,null,null,null,null,null,null,null,{"$f":"IF(CA63,\"x\",\" \")","v":" "},null,false]
["Pletterne tilspidsede indadtil ell. manglende ?",null,null,null,null,null,null,null,null,null,null,null,null,null,null,null,null,null,7,{"$f":"IF(AQ61=AQ52,AI61,\" \")","v":"umbellatarum"},null,null,null,null,null,null,null,null,null,null,null,null,null,10,".",null,null,null,null,null,null,null,0,null,null,null,null,null,null,null,null,null,null,null,null,null,null,null,null,null,null,null,0,null,null,null,null,null,null,null,null,null,null,null,null,null,{"$f":"IF(CA64,\"x\",\" \")","v":" "},null,false]
[null,null,null,null,null,null,null,null,null,null,null,null,null,null,null,null,null,null,null,null,null,null,null,null,null,null,null,null,null,null,null,null,null,11,".",null,null,null,null,null,null,null,{"$f":"SUM(AR65:BJ65)","v":0},null,null,null,null,null,null,null,null,null,null,null,null,null,null,null,null,null,null,null,0,null,null,null,null,null,null,null,null,null,null,null,null,null," "]
["Hvis pletter på 2. led, da oftest meget små?",null,null,null,null,null,null,null,null,null,null,null,null,null,null,null,null,null,null,null,null,null,null,null,null,null,null,null,null,null,null,null,null,12,".",null,null,null,null,null,null,null,{"$f":"SUM(AR66:BJ66)","v":0},null,null,null,null,null,null,null,null,null,null,null,null,null,null,null,null,null,null,null,0,null,null,null,null,null,null,null,null,null,null,null,null,null,{"$f":"IF(CA66,\"x\",\" \")","v":" "},null,0]
["Hvis pletter på 2. led, da  større, aldrig runde ?",null,null,null,null,null,null,null,null,null,null,null,null,null,null,null,null,null,null,null,null,null,null,null,null,null,null,null,null,null,null,null,null,13,".",null,null,null,null,null,null,null,{"$f":"SUM(AR67:BJ67)","v":0},null,null,null,null,null,null,null,null,null,null,null,null,null,null,null,null,null,null,null,0,null,null,null,null,null,null,null,null,null,null,null,null,null,{"$f":"IF(CA67,\"x\",\" \")","v":" "},null,0]
[null,null,null,null,null,null,null,null,null,null,null,null,null,null,null,null,{"$f":"+CA83","v":3}," Melangyna",null,null,null,{"$f":"VLOOKUP(Q68,AH55:AI67,2)","v":"lasiophthalma"},null,null,null,null,null,null,null,null,null,null,null,null,null,null,null,null,null,null,null,null,null,null,null,null,null,null,null,null,null,null,null,null,null,null,null,null,null,null,null,null,null,null,null,null,null,null,null,null,null,null,null,null,null,null," "]
["Bagkrop med pudrede sidepletter ?",null,null,null,null,null,null,null,null,null,null,null,null,null,null,null,{"$f":"VLOOKUP(Q68,AH70:AI82,2)","v":"Øjne med korte hår. Ansigt gult med bred sort stribe."},null,null,null,null,null,null,null,null,null,null,null,null,null,null,null,null,null,null,null,null,null,null,null,null,null,null,null,null,null,null,null,null,null,null,null,null,null,null,null,null,null,null,null,null,null,null,null,null,null,null,null,null,null,null,null,null,null,null,null,{"$f":"IF(CA69,\"x\",\" \")","v":" "},null,0]
["Bagkrop ikke sådan?",null,null,null,null,null,null,null,null,null,null,null,null,null,null,null,{"$f":"VLOOKUP(Q68,AH84:AI96,2)","v":"Pande med tydeligt gråt tværbånd. Baghoved langs øjne-"},null,null,null,null,null,null,null,null,null,null,null,null,null,null,null,1,1,"Øjne ubehårede. Ansigt bredt,  gult på siderne, sort  mid-",null,null,null,null,null,null,null,null,null,null,null,null,null,null,null,null,null,{"$f":"SUM(AR55:BJ55)","v":0},"       Mørk Svirreflue",null,null,null,null,null,null,null,null,null,null,null,null,null,null,null,null,null,null,null,null,null,null,{"$f":"IF(CA70,\"x\",\" \")","v":" "},null,0]
[null,null,null,null,null,null,null,null,null,null,null,null,null,null,null,null,{"$f":"VLOOKUP(Q68,AH98:AI110,2)","v":"nes bagkant gråt bestøvet. Bryst med lnag lys behåring."},null,null,null,null,null,null,null,null,null,null,null,null,null,null,null,null,2,"Øjne med meget korte hår. Ansigt gult med sort mid-",null,null,null,null,null,null,null,null,null,null,null,null,null,null,null,null,null,0,"        Kurve-Svirreflue",null,null,null,null,null,null,null,null,null,null,null,null,null,null,null,null,null,null,null,null,null,null," "]
["Pletter hvide. Bryst skinnende blåsort ?",null,null,null,null,null,null,null,null,null,null,null,null,null,null,null,{"$f":"VLOOKUP(Q68,AH112:AI124,2)","v":"Scutellum gulligt med sorte sidekanter. Bagkrop"},null,null,null,null,null,null,null,null,null,null,null,null,null,null,null,null,3,"Øjne med korte hår. Ansigt gult med bred sort stribe.",null,null,null,null,null,null,null,null,null,null,null,null,null,null,null,null,null,{"$f":"SUM(AR57:BJ57)","v":0},"    Håret Svirreflue",null,null,null,null,null,null,null,null,null,null,null,null,null,null,null,null,null,null,null,null,null,null,{"$f":"IF(CA72,\"x\",\" \")","v":" "},null,0]
["Bagkrop og brystoverside ikke sådan ?",null,null,null,null,null,null,null,null,null,null,null,null,null,null,null,{"$f":"VLOOKUP(Q68,AH126:AI138,2)","v":"med ret smalle noget ovale gule pletter, på andet led"},null,null,null,null,null,null,null,null,null,null,null,null,null,null,null,null,4,"Øjne m. lange hår. Ansigt bredt, gult med sort midter-",null,null,null,null,null,null,null,null,null,null,null,null,null,null,null,null,null,{"$f":"SUM(AR58:BJ58)","v":0},"   Lysende Svirreflue",null,null,null,null,null,null,null,null,null,null,null,null,null,null,null,null,null,null,null,null,null,null,{"$f":"IF(CA73,\"x\",\" \")","v":" "},null,0]
[null,null,null,null,null,null,null,null,null,null,null,null,null,null,null,null,{"$f":"VLOOKUP(Q68,AH140:AI152,2)","v":"aldrig små og runde. Ben mørke, forreste skinneben "},null,null,null,null,null,null,null,null,null,null,null,null,null,null,null,null,5,"Øjne langt behårede. Pande bestøvet med smalle, ofte  ",null,null,null,null,null,null,null,null,null,null,null,null,null,null,null,null,null,{"$f":"SUM(AR59:BJ59)","v":0},"-",null,null,null,null,null,null,null,null,null,null,null,null,null,null,null,null,null,null,null,null,null,null,{"$f":"IF(CA74,\"x\",\" \")","v":" "},null,0]
["Pande skinnende, uden støvpletter?",null,null,null,null,null,null,null,null,null,null,null,null,null,null,null,{"$f":"VLOOKUP(Q68,AH154:AI166,2)","v":"ret lyse .8-11 mm. Forårsart, mar.-maj.  Ret alm.."},null,null,null,null,null,null,null,null,null,null,null,null,null,null,null,null,6,"Øjne tæt kort behårede (undersg nøje). Pande sort og",null,null,null,null,null,null,null,null,null,null,null,null,null,null,null,null,null,{"$f":"SUM(AR60:BJ60)","v":0},"  Firplettet Svirreflue",null,null,null,null,null,null,null,null,null,null,null,null,null,null,null,null,null,null,null,null,null,null,{"$f":"IF(CA75,\"x\",\" \")","v":" "},null,0]
["Pande mere eller mindre bestøvet?",null,null,null,null,null,null,null,null,null,null,null,null,null," ",null,null,null,null,null,null,"Melangyna HUNNER m. billeder 1",null,null,null,null,null,null,null,null,null,null,null,7,"Øjne uden hår. Pande meget bredt bestøvet. Ansigt gult",null,null,null,null,null,null,null,null,null,null,null,null,null,null,null,null,null,{"$f":"SUM(AR61:BJ61)","v":0},"    Skærm-Svirreflue"]
[null,null,null,null,null,null,null,null,null,null,null,null,null,null,null,null,null,null,null,null,null,null,null,null,null,null,null,null,null,null,null,null,null,8,"."]
[null,null,null,null,null,null,null,null,null,null,null,null,null,null,null,null,null,null,null,null,null,null,null,null,null,null,null,null,null,null,null,null,null,9,"."]
[null,null,null,null,null,null,null,null,null,null,null,null,null,null,null,null,null,null,null,null,null,null,null,null,null,null,null,null,null,null,null,null,null,10,"."]
[null,null,null,null,null,null,null,null,null,null,null,null,null,null,null,null,null,null,null,null,null,null,null,null,null,null,null,null,null,null,null,null,null,11,"."]
[null,null,null,null,null,null,null,null,null,null,null,null,null,null,null,null,null,null,null,null,null,null,null,null,null,null,null,null,null,null,null,null,null,12,"."]
[null,null,null,null,null,null,null,null,null,null,null,null,null,null,null,null,null,null,null,null,null,null,null,null,null,null,null,null,null,null,null,null,null,13,"."]
[null,null,null,null,null,null,null,null,null,null,null,null,null,null,null,null,null,null,null,null,null,null,null,null,null,null,null,null,null,null,null,null,null,null,null,null,null,null,null,null,null,null,null,null,null,null,null,null,null,null,null,null,{"$f":"SUM(AR63:BJ63)","v":0},null,null,null,null,null,null,null,null,null,null,null,null,null,null,null,null,null,null,null,null,null,null,null,null,null,3]
[null,null,null,null,null,null,null,null,null,null,null,null,null,null,null,null,null,null,null,null,null,null,null,null,null,null,null,null,null,null,null,null,2,1,"terstribe. Pande ubestøvet. Det samme gælder baghoved ",null,null,null,null,null,null,null,null,null,null,null,null,null,null,null,null,null,0]
[null,null,null,null,null,null,null,null,null,null,null,null,null,null,null,null,null,null,null,null,null,null,null,null,null,null,null,null,null,null,null,null,null,2,"terstribe. Pande meget bredt bestøvet. Bryst gråt be-",null,null,null,null,null,null,null,null,null,null,null,null,null,null,null,null,null,0]
[null,null,null,null,null,null,null,null,null,null,null,null,null,null,null,null,null,null,null,null,null,null,null,null,null,null,null,null,null,null,null,null,null,3,"Pande med tydeligt gråt tværbånd. Baghoved langs øjne-",null,null,null,null,null,null,null,null,null,null,null,null,null,null,null,null,null,0]
[null,null,null,null,null,null,null,null,null,null,null,null,null,null,null,null,null,null,null,null,null,null,null,null,null,null,null,null,null,null,null,null,null,4,"stribe. Pande sort med smalt støvtværbånd, ofte brudt.",null,null,null,null,null,null,null,null,null,null,null,null,null,null,null,null,null,0]
[null,null,null,null,null,null,null,null,null,null,null,null,null,null,null,null,null,null,null,null,null,null,null,null,null,null,null,null,null,null,null,null,null,5,"forbundne grå støvpletter. Ansigt helt sort eller gult",null,null,null,null,null,null,null,null,null,null,null,null,null,null,null,null,null," "]
[null,null,null,null,null,null,null,null,null,null,null,null,null,null,null,null,null,null,null,null,null,null,null,null,null,null,null,null,null,null,null,null,null,6,"ubestøvet. Ansigt sort. Brystoverside langt lyst behåret, "]
[null,null,null,null,null,null,null,null,null,null,null,null,null,null,null,null,null,null,null,null,null,null,null,null,null,null,null,null,null,null,null,null,null,7,"med sort midterstribe. Brystets overside kraftigt blåt"]
[null,null,null,null,null,null,null,null,null,null,null,null,null,null,null,null,null,null,null,null,null,null,null,null,null,null,null,null,null,null,null,null,null,8,"."]
[null,null,null,null,null,null,null,null,null,null,null,null,null,null,null,null,null,null,null,null,null,null,null,null,null,null,null,null,null,null,null,null,null,9,"."]
[null,null,null,null,null,null,null,null,null,null,null,null,null,null,null,null,null,null,null,null,null,null,null,null,null,null,null,null,null,null,null,null,null,10,"."]
[null,null,null,null,null,null,null,null,null,null,null,null,null,null,null,null,null,null,null,null,null,null,null,null,null,null,null,null,null,null,null,null,null,11,"."]
[null,null,null,null,null,null,null,null,null,null,null,null,null,null,null,null,null,null,null,null,null,null,null,null,null,null,null,null,null,null,null,null,null,12,"."]
[null,null,null,null,null,null,null,null,null,null,null,null,null,null,null,null,null,null,null,null,null,null,null,null,null,null,null,null,null,null,null,null,null,12,"."]
[]
[null,null,null,null,null,null,null,null,null,null,null,null,null,null,null,null,null,null,null,null,null,null,null,null,null,null,null,null,null,null,null,null,3,1,"langs øjnenes bagkant (her er lasiophthalma bestøvet)."]
[null,null,null,null,null,null,null,null,null,null,null,null,null,null,null,null,null,null,null,null,null,null,null,null,null,null,null,null,null,null,null,null,null,2,"støvet, svagt skinnende. Bagkrop med 3 par gule pletter,"]
[null,null,null,null,null,null,null,null,null,null,null,null,null,null,null,null,null,null,null,null,null,null,null,null,null,null,null,null,null,null,null,null,null,3,"nes bagkant gråt bestøvet. Bryst med lnag lys behåring."]
[null,null,null,null,null,null,null,null,null,null,null,null,null,null,null,null,null,null,null,null,null,null,null,null,null,null,null,null,null,null,null,null,null,4,"Kroppen lyst behåret. Scutellum gult med sorte side-"]
[null,null,null,null,null,null,null,null,null,null,null,null,null,null,null,null,null,null,null,null,null,null,null,null,null,null,null,null,null,null,null,null,null,5,"og sort. Scutellum oftest gult, noget mørkere på midten"]
[null,null,null,null,null,null,null,null,null,null,null,null,null,null,null,null,null,null,null,null,null,null,null,null,null,null,null,null,null,null,null,null,null,6,"ved siderne sort. Scutellum sort, ofte brunt midt på med"]
[null,null,null,null,null,null,null,null,null,null,null,null,null,null,null,null,null,null,null,null,null,null,null,null,null,null,null,null,null,null,null,null,null,7,"metalskinnende. Scutellum gult, med sorte forhjørner."]
[null,null,null,null,null,null,null,null,null,null,null,null,null,null,null,null,null,null,null,null,null,null,null,null,null,null,null,null,null,null,null,null,null,8,"."]
[null,null,null,null,null,null,null,null,null,null,null,null,null,null,null,null,null,null,null,null,null,null,null,null,null,null,null,null,null,null,null,null,null,9,"."]
[null,null,null,null,null,null,null,null,null,null,null,null,null,null,null,null,null,null,null,null,null,null,null,null,null,null,null,null,null,null,null,null,null,10,"."]
[null,null,null,null,null,null,null,null,null,null,null,null,null,null,null,null,null,null,null,null,null,null,null,null,null,null,null,null,null,null,null,null,null,11,"."]
[null,null,null,null,null,null,null,null,null,null,null,null,null,null,null,null,null,null,null,null,null,null,null,null,null,null,null,null,null,null,null,null,null,12,"."]
[null,null,null,null,null,null,null,null,null,null,null,null,null,null,null,null,null,null,null,null,null,null,null,null,null,null,null,null,null,null,null,null,null,13,"."]
[null,null,null,null,null,null,null,null,null,null,null,null,null,null,null,null,null,null,null,null,null,null,null,null,null,null,null,null,null,null,null,null,null,null,null,null,null,null,null,null,null,null,null,null,null,null,null,null,null,null,null,null,null,null,null,null,null,null,null,null,null,null,null,null,null,null,null,null,null,null,null,null,null,null,null,null,null,null,null,null,null,null,null,null,null,null,null,null,null,{"$f":"SUM(Q68)","v":3},{"$f":"VLOOKUP(CL111,'Ark2'!B3:C9,2,FALSE)","v":"ark2!A5"}]
[null,null,null,null,null,null,null,null,null,null,null,null,null,null,null,null,null,null,null,null,null,null,null,null,null,null,null,null,null,null,null,null,4,1,"Scutellum sort, eller  måske lidt brunt. 2.-4. bagkrops-",null,null,null,null,null,null,null,null,null,null,null,null,null,null,null,null,null,null,null,null,null,null,null,null,null,null,null,null,null,null,null,null,null,null,null,null,null,null,null,null,null,null,null,null,null,null,null,null,null,null,null,null,null,null,{"$f":"SUM(BY48)","v":5},{"$f":"VLOOKUP(CL112,'Ark2'!G3:H21,2,FALSE)","v":"ark2!F7"}]
[null,null,null,null,null,null,null,null,null,null,null,null,null,null,null,null,null,null,null,null,null,null,null,null,null,null,null,null,null,null,null,null,null,2,"de på 3. og 4. led rektangulære. Ben sorte og gule. 8-11"]
[null,null,null,null,null,null,null,null,null,null,null,null,null,null,null,null,null,null,null,null,null,null,null,null,null,null,null,null,null,null,null,null,null,3,"Scutellum gulligt med sorte sidekanter. Bagkrop"]
[null,null,null,null,null,null,null,null,null,null,null,null,null,null,null,null,null,null,null,null,null,null,null,null,null,null,null,null,null,null,null,null,null,4,"kanter. 2. bagkropsled med små gule pletter, der oftest"]
[null,null,null,null,null,null,null,null,null,null,null,null,null,null,null,null,null,null,null,null,null,null,null,null,null,null,null,null,null,null,null,null,null,5,"og med sorte sidekanter. 2. bagkropsled med små smalle"]
[null,null,null,null,null,null,null,null,null,null,null,null,null,null,null,null,null,null,null,null,null,null,null,null,null,null,null,null,null,null,null,null,null,6,"meget lang lys behåring. Ingen andre sorte  Syrphider"]
[null,null,null,null,null,null,null,null,null,null,null,null,null,null,null,null,null,null,null,null,null,null,null,null,null,null,null,null,null,null,null,null,null,7,"Bagkrop med 3 par hvidgule pletter,  på 3. og 4. led syr-"]
[null,null,null,null,null,null,null,null,null,null,null,null,null,null,null,null,null,null,null,null,null,null,null,null,null,null,null,null,null,null,null,null,null,8,"."]
[null,null,null,null,null,null,null,null,null,null,null,null,null,null,null,null,null,null,null,null,null,null,null,null,null,null,null,null,null,null,null,null,null,9,"."]
[null,null,null,null,null,null,null,null,null,null,null,null,null,null,null,null,null,null,null,null,null,null,null,null,null,null,null,null,null,null,null,null,null,10,"."]
[null,null,null,null,null,null,null,null,null,null,null,null,null,null,null,null,null,null,null,null,null,null,null,null,null,null,null,null,null,null,null,null,null,11,"."]
[null,null,null,null,null,null,null,null,null,null,null,null,null,null,null,null,null,null,null,null,null,null,null,null,null,null,null,null,null,null,null,null,null,12,"."]
[null,null,null,null,null,null,null,null,null,null,null,null,null,null,null,null,null,null,null,null,null,null,null,null,null,null,null,null,null,null,null,null,null,13,"."]
[]
[null,null,null,null,null,null,null,null,null,null,null,null,null,null,null,null,null,null,null,null,null,null,null,null,null,null,null,null,null,null,null,null,5,1,"led med ubestøvede rektangulære gule pletter. Ben sor-"]
[null,null,null,null,null,null,null,null,null,null,null,null,null,null,null,null,null,null,null,null,null,null,null,null,null,null,null,null,null,null,null,null,null,2,"mm. Sommerart, juni-august. Ret sjælden."]
[null,null,null,null,null,null,null,null,null,null,null,null,null,null,null,null,null,null,null,null,null,null,null,null,null,null,null,null,null,null,null,null,null,3,"med ret smalle noget ovale gule pletter, på andet led"]
[null,null,null,null,null,null,null,null,null,null,null,null,null,null,null,null,null,null,null,null,null,null,null,null,null,null,null,null,null,null,null,null,null,4,"er runde. 3. og 4. led med smalle sølvpudrede pletter,"]
[null,null,null,null,null,null,null,null,null,null,null,null,null,null,null,null,null,null,null,null,null,null,null,null,null,null,null,null,null,null,null,null,null,5,"gule pletter. 3. og 4. led med smalle rektangulære "]
[null,null,null,null,null,null,null,null,null,null,null,null,null,null,null,null,null,null,null,null,null,null,null,null,null,null,null,null,null,null,null,null,null,6,"disse kendetegn. Bagkrop helt sort, måske med svage"]
[null,null,null,null,null,null,null,null,null,null,null,null,null,null,null,null,null,null,null,null,null,null,null,null,null,null,null,null,null,null,null,null,null,7,"rektangulære. Ben sorte og gule. 9-10 mm.  Sommer-"]
[null,null,null,null,null,null,null,null,null,null,null,null,null,null,null,null,null,null,null,null,null,null,null,null,null,null,null,null,null,null,null,null,null,8,"."]
[null,null,null,null,null,null,null,null,null,null,null,null,null,null,null,null,null,null,null,null,null,null,null,null,null,null,null,null,null,null,null,null,null,9,"."]
[null,null,null,null,null,null,null,null,null,null,null,null,null,null,null,null,null,null,null,null,null,null,null,null,null,null,null,null,null,null,null,null,null,10,"."]
[null,null,null,null,null,null,null,null,null,null,null,null,null,null,null,null,null,null,null,null,null,null,null,null,null,null,null,null,null,null,null,null,null,11,"."]
[null,null,null,null,null,null,null,null,null,null,null,null,null,null,null,null,null,null,null,null,null,null,null,null,null,null,null,null,null,null,null,null,null,12,"."]
[null,null,null,null,null,null,null,null,null,null,null,null,null,null,null,null,null,null,null,null,null,null,null,null,null,null,null,null,null,null,null,null,null,13,"."]
[]
[null,null,null,null,null,null,null,null,null,null,null,null,null,null,null,null,null,null,null,null,null,null,null,null,null,null,null,null,null,null,null,null,6,1,"te, for- og mellemben lidt gulbrune. 7-8 mm. Forårs-"]
[null,null,null,null,null,null,null,null,null,null,null,null,null,null,null,null,null,null,null,null,null,null,null,null,null,null,null,null,null,null,null,null,null,2,"Melangyna labiatarum regnes for at være en variant"]
[null,null,null,null,null,null,null,null,null,null,null,null,null,null,null,null,null,null,null,null,null,null,null,null,null,null,null,null,null,null,null,null,null,3,"aldrig små og runde. Ben mørke, forreste skinneben "]
[null,null,null,null,null,null,null,null,null,null,null,null,null,null,null,null,null,null,null,null,null,null,null,null,null,null,null,null,null,null,null,null,null,4,"der indefter smalner til, især på 4. led. Mellemste "]
[null,null,null,null,null,null,null,null,null,null,null,null,null,null,null,null,null,null,null,null,null,null,null,null,null,null,null,null,null,null,null,null,null,5,"gule pletter, der er let hvidt bestøvede. Ben delvis gule."]
[null,null,null,null,null,null,null,null,null,null,null,null,null,null,null,null,null,null,null,null,null,null,null,null,null,null,null,null,null,null,null,null,null,6,"antydninger af pletter. Ben sorte, måske lidt brune"]
[null,null,null,null,null,null,null,null,null,null,null,null,null,null,null,null,null,null,null,null,null,null,null,null,null,null,null,null,null,null,null,null,null,7,"art, mest juni-aug. Ikke almindelig."]
[null,null,null,null,null,null,null,null,null,null,null,null,null,null,null,null,null,null,null,null,null,null,null,null,null,null,null,null,null,null,null,null,null,8,"."]
[null,null,null,null,null,null,null,null,null,null,null,null,null,null,null,null,null,null,null,null,null,null,null,null,null,null,null,null,null,null,null,null,null,9,"."]
[null,null,null,null,null,null,null,null,null,null,null,null,null,null,null,null,null,null,null,null,null,null,null,null,null,null,null,null,null,null,null,null,null,10,"."]
[null,null,null,null,null,null,null,null,null,null,null,null,null,null,null,null,null,null,null,null,null,null,null,null,null,null,null,null,null,null,null,null,null,11,"."]
[null,null,null,null,null,null,null,null,null,null,null,null,null,null,null,null,null,null,null,null,null,null,null,null,null,null,null,null,null,null,null,null,null,12,"."]
[null,null,null,null,null,null,null,null,null,null,null,null,null,null,null,null,null,null,null,null,null,null,null,null,null,null,null,null,null,null,null,null,null,13,"."]
[]
[null,null,null,null,null,null,null,null,null,null,null,null,null,null,null,null,null,null,null,null,null,null,null,null,null,null,null,null,null,null,null,null,7,1,"art. Sjælden på Øerne, hyppigere i Jylland."]
[null,null,null,null,null,null,null,null,null,null,null,null,null,null,null,null,null,null,null,null,null,null,null,null,null,null,null,null,null,null,null,null,null,2,"med bl. a. tydeligere og tættere behåring på øjnene."]
[null,null,null,null,null,null,null,null,null,null,null,null,null,null,null,null,null,null,null,null,null,null,null,null,null,null,null,null,null,null,null,null,null,3,"ret lyse .8-11 mm. Forårsart, mar.-maj.  Ret alm.."]
[null,null,null,null,null,null,null,null,null,null,null,null,null,null,null,null,null,null,null,null,null,null,null,null,null,null,null,null,null,null,null,null,null,4,"skinneben oftest helt gule. 8-10 mm. Forårsart. Mgt. sj."]
[null,null,null,null,null,null,null,null,null,null,null,null,null,null,null,null,null,null,null,null,null,null,null,null,null,null,null,null,null,null,null,null,null,5,"7 -8 mm. Nyere forårsart under udbredelse."]
[null,null,null,null,null,null,null,null,null,null,null,null,null,null,null,null,null,null,null,null,null,null,null,null,null,null,null,null,null,null,null,null,null,6,"ved knæene. 6-9 mm. Forårsret. Temmelig sjælden."]
[null,null,null,null,null,null,null,null,null,null,null,null,null,null,null,null,null,null,null,null,null,null,null,null,null,null,null,null,null,null,null,null,null,7,"."]
[null,null,null,null,null,null,null,null,null,null,null,null,null,null,null,null,null,null,null,null,null,null,null,null,null,null,null,null,null,null,null,null,null,8,"."]
[null,null,null,null,null,null,null,null,null,null,null,null,null,null,null,null,null,null,null,null,null,null,null,null,null,null,null,null,null,null,null,null,null,9,"."]
[null,null,null,null,null,null,null,null,null,null,null,null,null,null,null,null,null,null,null,null,null,null,null,null,null,null,null,null,null,null,null,null,null,10,"."]
[null,null,null,null,null,null,null,null,null,null,null,null,null,null,null,null,null,null,null,null,null,null,null,null,null,null,null,null,null,null,null,null,null,11,"."]
[null,null,null,null,null,null,null,null,null,null,null,null,null,null,null,null,null,null,null,null,null,null,null,null,null,null,null,null,null,null,null,null,null,12,"."]
[null,null,null,null,null,null,null,null,null,null,null,null,null,null,null,null,null,null,null,null,null,null,null,null,null,null,null,null,null,null,null,null,null,13,"."]

{"sheet":"Ark2","index":1,"n_rows":21,"n_cols":8,"rows_kept":21,"cut":false,"hidden":false,"merged":[]}
[]
[]
[null,1,"ark2!A3","M. barbifrons",null,null,1,"ark2!F3"]
[null,2,"ark2!A4","M. compositarum",null,null,2,"ark2!F4"]
[null,3,"ark2!A5","M. lasiophthalma",null,null,3,"ark2!F5"]
[null,4,"ark2!A6","M. lucifera",null,null,4,"ark2!F6"]
[null,5,"ark2!A7","M. pavlovskyi",null,null,5,"ark2!F7"]
[null,6,"ark2!A8","M. quadrimaculata",null,null,6,"ark2!F8"]
[null,7,"ark2!A9","M. umbellatarum",null,null,7,"ark2!F9"]
[null," ",null,null,null,null,8,"ark2!F10"]
[null," ",null,null,null,null,9,"ark2!F11"]
[null," ",null,null,null,null,10,"ark2!F12"]
[null,null,null,null,null,null,11,"ark2!F13"]
[null,null,null,null,null,null,12,"ark2!F14"]
[null,null,null,null,null,null,13,"ark2!F15"]
[null,null,null,null,null,null,14,"ark2!F16"]
[null,null,null,null,null,null,15,"ark2!F17"]
[null,null,null,null,null,null,16,"ark2!F18"]
[null,null,null,null,null,null,17,"ark2!F19"]
[null,null,null,null,null,null,18,"ark2!F20"]
[null,null,null,null,null,null,19,"ark2!F21"]

{"sheet":"Ark3","index":2,"n_rows":0,"n_cols":0,"rows_kept":0,"cut":false,"hidden":false,"merged":[]}

{"sheet":"Ark4","index":3,"n_rows":0,"n_cols":0,"rows_kept":0,"cut":false,"hidden":false,"merged":[]}

{"sheet":"Ark5","index":4,"n_rows":0,"n_cols":0,"rows_kept":0,"cut":false,"hidden":false,"merged":[]}

{"sheet":"Ark6","index":5,"n_rows":0,"n_cols":0,"rows_kept":0,"cut":false,"hidden":false,"merged":[]}